fUSD/lending_fUSD_20241013
["ID","MTS","AMOUNT","RATE_DAILY","PERIOD"]
[340195424,1728818490935,413.9,0.00010136,2]
[340195425,1728818535363,168.82,0.00010155,2]
[340195426,1728818569103,279.2,8.25e-05,2]
[340195427,1728818729885,384.5430575,0.000101,2]
[340195468,1728819008297,-586.1,0.00010491,2]
[340195469,1728819008321,-279.2,0.00010514,2]
[340195470,1728819008351,-300.0,0.00010679,2]
[340195471,1728819008372,-6504.2533,0.0001068,2]
[340195472,1728819008393,-588.9124,0.0001068,2]
[340195473,1728819008414,-2122.6584,0.0001068,2]
[340195474,1728819008436,-150.0,0.00010779,2]
[340195475,1728819008457,-500.0,0.0001078,2]
[340195476,1728819008481,-38968.8759,0.0001078,2]
[340195477,1728819009295,-50000.0,0.0001078,2]
[340195478,1728819009608,-50000.0,0.0001078,2]
[340195479,1728819009937,-50000.0,0.0001078,2]
[340195488,1728819031506,-668.88,0.00010473,2]
[340195490,1728819031521,-56031.1241,0.0001078,2]
[340195492,1728819031531,-262.3564,0.0001078,2]
[340195493,1728819031541,-3630.64321763,0.0001088,2]
[340195494,1728819031550,-162.30522389,0.00010899,2]
[340195495,1728819031559,-162.30522385,0.00010899,2]
[340195496,1728819031568,-162.30522385,0.00010899,2]
[340195497,1728819031577,-162.30522385,0.00010899,2]
[340195498,1728819031587,-7428.4,0.000109,2]
[340195499,1728819031597,-100000.0,0.000109,2]
[340195500,1728819031606,-200.03603232,0.000109,2]
[340195501,1728819031615,-4860.7578,0.000109,2]
[340195502,1728819031624,-150.0,0.000109,2]
[340195503,1728819031633,-150.0,0.000109,2]
[340195504,1728819031642,-359.17,0.000109,2]
[340195505,1728819031651,-150.0,0.000109,2]
[340195506,1728819031660,-534.7,0.000109,2]
[340195507,1728819031669,-150.0,0.000109,2]
[340195508,1728819031679,-429.55,0.000109,2]
[340195509,1728819031687,-150.0,0.000109,2]
[340195510,1728819031696,-150.0,0.000109,2]
[340195511,1728819031705,-302.53,0.000109,2]
[340195512,1728819031714,-218.39,0.000109,2]
[340195513,1728819031723,-755.74,0.000109,2]
[340195514,1728819031732,-424.09,0.000109,2]
[340195515,1728819031741,-287.79,0.000109,2]
[340195516,1728819031750,-150.0,0.000109,2]
[340195517,1728819031759,-162.30522385,0.000109,2]
[340195519,1728819031769,-150.91,0.00010959,2]
[340195520,1728819031779,-172.43,0.00010959,2]
[340195521,1728819031790,-499.99,0.00010959,2]
[340195522,1728819031799,-2241.76,0.00010959,2]
[340195523,1728819031808,-235.49,0.00010959,2]
[340195524,1728819031818,-500.0,0.00010973,2]
[340195525,1728819031827,-6325.35,0.00010996,2]
[340195526,1728819031836,-6703.01,0.00010996,2]
[340195527,1728819031846,-4915.37633076,0.00010996,2]
[340195528,1728819031872,-25084.61366924,0.00010996,2]
[340195529,1728819031881,-8203.32,0.00010996,2]
[340195530,1728819031890,-160.460775,0.00010996,2]
[340195531,1728819031899,-300.83218493,0.00010996,2]
[340195532,1728819031908,-150.0,0.00010998,2]
[340195533,1728819031917,-3378.649,0.00010998,2]
[340195534,1728819031927,-6114.925,0.00010998,2]
[340195535,1728819031936,-347.34385927,0.00010999,2]
[340195536,1728819031945,-507.0,0.00011,2]
[340195537,1728819031955,-51664.39335793,0.00011,2]
[340195538,1728819031966,-250.0,0.00011,2]
[340195539,1728819031976,-374.27028,0.00011,2]
[340195543,1728819037767,-60187.06854148,0.00011,2]
[340195544,1728819037776,-150.0,0.00011,2]
[340195545,1728819037785,-276237.98076692,0.00011,2]
[340195681,1728819039637,-314.005,0.00011,2]
[340195682,1728819039922,-200.995,0.00011,2]
[340195683,1728819039932,-49.005,0.00011,2]
[340195695,1728819043575,-226.41,0.00010619,2]
[340195696,1728819043586,-309145.467384,0.00011,2]
[340195697,1728819043689,-331.97,0.00011,2]
[340195706,1728819080533,-554.2539,0.0001068,2]
[340195707,1728819080560,-881.94204263,0.000109,2]
[340195708,1728819080580,-8403.2064509,0.000109,2]
[340195709,1728819080604,-7500.0,0.000109,2]
[340195710,1728819080629,-161.30374935,0.000109,2]
[340195711,1728819080655,-370.11499999,0.00010958,2]
[340195712,1728819080676,-300.0,0.00010999,2]
[340195713,1728819080699,-500.0,0.00010999,2]
[340195714,1728819080718,-423.17626135,0.00010999,2]
[340195715,1728819080743,-500.0,0.00010999,2]
[340195716,1728819080766,-406.92531838,0.00010999,2]
[340195717,1728819080792,-15190.5072774,0.00011,2]
[340195718,1728819125621,-250.0,0.00010634,2]
[340195719,1728819125644,-833.64273991,0.000109,2]
[340195720,1728819125672,-112006.35726009,0.00011,2]
[340195721,1728819150014,500.0,9.071e-05,2]
[340195722,1728819319434,290.29,8.219e-05,2]
[340195723,1728819456742,920.28,9.883e-05,2]
[340195724,1728819540027,464.89,9.884e-05,2]
[340195726,1728819683537,226.41,9.876e-05,2]
[340195728,1728819850741,275.77,8.219e-05,2]
[340195736,1728820068613,250.0,9.873e-05,2]
[340195802,1728820155105,1000.0,9.869e-05,2]
[340195816,1728820231627,-275.77,0.00010469,2]
[340195817,1728820231637,-1251.0,0.00010628,2]
[340195818,1728820231650,-150.0,0.00010728,2]
[340195819,1728820231662,-1500.0,0.00010729,2]
[340195820,1728820231673,-3311.95,0.00010731,2]
[340195821,1728820231686,-1460.68498555,0.00010731,2]
[340195822,1728820231977,-39.31501445,0.00010731,2]
[340195823,1728820231987,-150.0,0.00010732,2]
[340195824,1728820232000,-1500.0,0.00010745,2]
[340195825,1728820232012,-1500.0,0.00010746,2]
[340195826,1728820232024,-1500.0,0.00010752,2]
[340195827,1728820232036,-150.0,0.00010754,2]
[340195828,1728820232047,-150.0,0.00010756,2]
[340195829,1728820232058,-150.0,0.00010763,2]
[340195830,1728820232069,-150.0,0.00010774,2]
[340195831,1728820232082,-1500.0,0.00010783,2]
[340195832,1728820232094,-1500.0,0.00010787,2]
[340195833,1728820232104,-1500.0,0.00010794,2]
[340195834,1728820232117,-1500.0,0.00010796,2]
[340195835,1728820232128,-1500.0,0.000108,2]
[340195836,1728820232143,-1500.0,0.00010804,2]
[340195837,1728820232155,-150.0,0.00010808,2]
[340195838,1728820232166,-1518.5848985,0.00010812,2]
[340195839,1728820232179,-1350.0499,0.00010817,2]
[340195840,1728820232189,-1500.0,0.00010817,2]
[340195841,1728820232199,-1500.0,0.0001083,2]
[340195842,1728820232209,-1500.0,0.00010839,2]
[340195843,1728820232220,-150.0,0.00010839,2]
[340195844,1728820232231,-1500.0,0.0001084,2]
[340195845,1728820232242,-1500.0,0.00010843,2]
[340195846,1728820232253,-150.0,0.00010843,2]
[340195847,1728820232264,-150.0,0.00010853,2]
[340195848,1728820232275,-1500.0,0.00010854,2]
[340195849,1728820232287,-1500.0,0.00010859,2]
[340195850,1728820232297,-1500.0,0.00010864,2]
[340195851,1728820232310,-150.0,0.00010898,2]
[340195852,1728820232321,-47621.19791048,0.000109,2]
[340195857,1728820237731,-22501.28476895,0.000109,2]
[340195858,1728820237967,-4009.00553,0.000109,2]
[340195859,1728820238030,-3911.27399057,0.000109,2]
[340195860,1728820238044,-165.12821769,0.000109,2]
[340195861,1728820238057,-909.5069,0.000109,2]
[340195862,1728820238070,-1215.0,0.000109,2]
[340195863,1728820238083,-224.30754513,0.000109,2]
[340195865,1728820238095,-1500.0,0.00010905,2]
[340195868,1728820238108,-150.0,0.00010906,2]
[340195870,1728820238121,-150.0,0.00010907,2]
[340195872,1728820238136,-150.0,0.00010926,2]
[340195875,1728820238150,-150.0,0.00010939,2]
[340195877,1728820238162,-1500.0,0.00010943,2]
[340195879,1728820238175,-150.0,0.00010948,2]
[340195881,1728820238186,-172.43,0.00010959,2]
[340195884,1728820238198,-154.39,0.00010959,2]
[340195886,1728820238211,-157.18,0.00010959,2]
[340195888,1728820238223,-1500.0,0.0001096,2]
[340195890,1728820238235,-150.0,0.00010967,2]
[340195893,1728820238246,-504.87860989,0.00010973,2]
[340195895,1728820238258,-500.0,0.00010973,2]
[340195897,1728820238269,-1500.0,0.00010995,2]
[340195899,1728820238284,-1178.6251541,0.00010996,2]
[340195901,1728820238296,-559.0,0.00010998,2]
[340195903,1728820238307,-500.0,0.00010999,2]
[340195905,1728820238318,-500.0,0.00010999,2]
[340195918,1728820238519,-500.0,0.00010999,2]
[340195920,1728820238531,-500.0,0.00010999,2]
[340195922,1728820238540,-500.0,0.00010999,2]
[340195924,1728820238549,-501.60802987,0.00010999,2]
[340195926,1728820238559,-512.0,0.00011,2]
[340195928,1728820238567,-70875.74270279,0.00011,2]
[340195990,1728820239688,-1132.5,0.00011,2]
[340195991,1728820239699,-1397.98740714,0.00011,2]
[340195992,1728820239711,-1953.01259286,0.00011,2]
[340195993,1728820239748,-281.3614,0.00011,2]
[340195994,1728820239759,-1253.795,0.00011,2]
[340195995,1728820239771,-823.32450002,0.00011,2]
[340195996,1728820239782,-266.84261992,0.00011,2]
[340195997,1728820239807,-313.44,0.00011,2]
[340195998,1728820240176,-3171.68728892,0.00011,2]
[340195999,1728820240195,-9881.72257508,0.00011,2]
[340196007,1728820242858,-683.42308022,0.00011,2]
[340196008,1728820242869,-436.11645106,0.00011,2]
[340196009,1728820242880,-2450.76048432,0.00011,2]
[340196010,1728820242926,-262.36485801,0.00011,2]
[340196011,1728820242938,-303.59588668,0.00011,2]
[340196012,1728820242959,-1205.50888672,0.00011,2]
[340196013,1728820242972,-335.4,0.00011,2]
[340196014,1728820242985,-510.81800001,0.00011,2]
[340196015,1728820243071,-0.28757558,0.00011,2]
[340196020,1728820245691,-345.5766335,0.00010973,2]
[340196021,1728820246021,-22.80837377,0.00010973,2]
[340196022,1728820246032,-4109.96893048,0.00011,2]
[340196023,1728820246042,-50449.73872262,0.00011,2]
[340196024,1728820246055,-54236.47917249,0.00011,2]
[340196025,1728820246065,-8501.19050181,0.00011,2]
[340196026,1728820246077,-49726.49149983,0.00011,2]
[340196027,1728820246090,-37191.318,0.00011,2]
[340196028,1728820246102,-105464.50597811,0.00011,2]
[340196029,1728820246111,-61276.72762589,0.00011,2]
[340196030,1728820246123,-46509.59332179,0.00011,2]
[340196031,1728820246136,-12934.22126184,0.00011,2]
[340196033,1728820352516,500.0,0.00010167,2]
[340196034,1728820353036,251.97,9.93e-05,2]
[340196035,1728820353413,500.0,0.00010167,2]
[340196036,1728820553653,500.0,9.071e-05,2]
[340196037,1728820553736,500.0,9.071e-05,2]
[340196038,1728820557193,500.0,0.00010167,2]
[340196039,1728820563584,500.0,0.00010167,2]
[340196040,1728820566329,23900.0,9.928e-05,2]
[340196041,1728820581124,269.75,8.219e-05,2]
[340196042,1728820619921,250.0,9.917e-05,2]
[340196045,1728820750266,200.0,9.917e-05,2]
[340196050,1728820906704,193.49,9.919e-05,2]
[340196057,1728821112848,5910.78,9.896e-05,2]
[340196060,1728821130808,276.56,8.219e-05,2]
[340196061,1728821139587,250.0,9.896e-05,2]
[340196095,1728821313751,840.0,9.9e-05,2]
[340196120,1728821330049,203.15,9.9e-05,2]
[340196135,1728821431797,-800.0,0.00010237,2]
[340196136,1728821431809,-276.56,0.00010471,2]
[340196137,1728821431821,-800.0,0.00010619,2]
[340196138,1728821431832,-481.84266781,0.00010619,2]
[340196139,1728821431841,-232.021124,0.00010714,2]
[340196140,1728821431851,-150.0,0.00010729,2]
[340196141,1728821431861,-150.0,0.00010729,2]
[340196142,1728821431870,-150.0,0.00010732,2]
[340196143,1728821431879,-150.0,0.0001074,2]
[340196144,1728821431888,-150.0,0.00010742,2]
[340196145,1728821431897,-150.0,0.00010759,2]
[340196146,1728821431906,-150.0,0.00010769,2]
[340196147,1728821431915,-150.0,0.00010769,2]
[340196148,1728821431924,-107.25220872,0.00010769,2]
[340196149,1728821431936,-392.73779128,0.00010769,2]
[340196150,1728821431945,-172.57039709,0.00010769,2]
[340196151,1728821431956,-289.54960291,0.00010769,2]
[340196152,1728821431965,-150.99,0.00010769,2]
[340196153,1728821431974,-150.0,0.00010773,2]
[340196154,1728821431983,-42.79039709,0.00010778,2]
[340196155,1728821432000,-107.20960291,0.00010778,2]
[340196156,1728821432010,-150.0,0.00010778,2]
[340196157,1728821432019,-150.0,0.00010785,2]
[340196158,1728821432027,-150.0,0.00010791,2]
[340196159,1728821432037,-150.0,0.00010792,2]
[340196160,1728821432048,-92.79039709,0.00010796,2]
[340196161,1728821432059,-57.20960291,0.00010796,2]
[340196162,1728821432069,-150.0,0.00010803,2]
[340196163,1728821432079,-150.0,0.00010814,2]
[340196164,1728821432088,-150.0,0.00010823,2]
[340196165,1728821432100,-150.0,0.00010829,2]
[340196166,1728821432109,-232.021124,0.00010848,2]
[340196167,1728821432118,-150.0,0.00010861,2]
[340196168,1728821432129,-150.0,0.00010862,2]
[340196169,1728821432139,-300.0,0.0001089,2]
[340196170,1728821432149,-150.0,0.0001089,2]
[340196171,1728821432158,-150.0,0.00010892,2]
[340196172,1728821432167,-916.25980662,0.000109,2]
[340196173,1728821432181,-9397.94129338,0.000109,2]
[340196174,1728821432190,-2567.0,0.000109,2]
[340196175,1728821432199,-152.43264857,0.000109,2]
[340196176,1728821432208,-815.2101,0.000109,2]
[340196177,1728821432218,-1608.56773637,0.000109,2]
[340196178,1728821432227,-447.03421674,0.000109,2]
[340196179,1728821432238,-2178.96020601,0.000109,2]
[340196180,1728821432247,-6316.42143079,0.000109,2]
[340196181,1728821432257,-150.0,0.00010903,2]
[340196182,1728821432266,-150.0,0.00010911,2]
[340196183,1728821432275,-150.0,0.00010919,2]
[340196184,1728821432284,-150.0,0.00010937,2]
[340196185,1728821432293,-150.0,0.00010938,2]
[340196186,1728821432302,-150.0,0.00010943,2]
[340196187,1728821432311,-219.02,0.00010959,2]
[340196188,1728821432321,-151.19,0.00010959,2]
[340196189,1728821432331,-250.0,0.00010959,2]
[340196190,1728821432341,-166.71,0.00010959,2]
[340196191,1728821432349,-501.79059087,0.00010973,2]
[340196192,1728821432358,-502.66685325,0.00010973,2]
[340196193,1728821432367,-500.0,0.00010973,2]
[340196194,1728821432376,-232.021124,0.00010982,2]
[340196195,1728821432386,-35000.0,0.00010982,2]
[340196196,1728821432395,-150.0,0.00010986,2]
[340196197,1728821432404,-150.0,0.0001099,2]
[340196198,1728821432413,-177.66837526,0.0001099,2]
[340196199,1728821432422,-500.0,0.00010991,2]
[340196200,1728821432431,-11812.14782181,0.00010991,2]
[340196201,1728821432442,-4417.66863035,0.00010991,2]
[340196202,1728821434988,-2132.33218236,0.00010991,2]
[340196203,1728821435000,-748.87385005,0.00010991,2]
[340196204,1728821435011,-4490.59023949,0.00010991,2]
[340196222,1728821438009,-2004.21858,0.00010991,2]
[340196223,1728821438022,-9394.16869594,0.00010991,2]
[340196224,1728821438032,-150.0,0.00010993,2]
[340196225,1728821438043,-899.4221348,0.00010996,2]
[340196226,1728821438052,-684.0146914,0.00010996,2]
[340196227,1728821438062,-780.9477354,0.00010996,2]
[340196228,1728821438073,-707.0688283,0.00010996,2]
[340196229,1728821438082,-900.0913998,0.00010997,2]
[340196230,1728821438091,-311.171,0.00010998,2]
[340196231,1728821438100,-935.0,0.00010998,2]
[340196232,1728821438110,-278.439,0.00010998,2]
[340196233,1728821438119,-208.557,0.00010998,2]
[340196234,1728821438129,-555.0,0.00010998,2]
[340196235,1728821438139,-3355.0,0.00010998,2]
[340196236,1728821438149,-1907.0,0.00010998,2]
[340196237,1728821438158,-808.0,0.00010998,2]
[340196238,1728821438168,-920.69028557,0.00010999,2]
[340196239,1728821438178,-150.0,0.00010999,2]
[340196240,1728821438187,-500.0,0.00010999,2]
[340196241,1728821438197,-500.0,0.00010999,2]
[340196242,1728821438207,-500.0,0.00010999,2]
[340196243,1728821438217,-581.36736754,0.00010999,2]
[340196244,1728821438226,-99875.11388092,0.00011,2]
[340196245,1728821438235,-7588.63215233,0.00011,2]
[340196246,1728821438246,-4605.26362197,0.00011,2]
[340196247,1728821438257,-2479.42174168,0.00011,2]
[340196248,1728821438275,-2533.46955,0.00011,2]
[340196249,1728821438287,-2510.72,0.00011,2]
[340196250,1728821438303,-582.24356216,0.00011,2]
[340196251,1728821438320,-61747.16500541,0.00011,2]
[340196252,1728821438330,-685068.98116035,0.00011,2]
[340196253,1728821438339,-1141579.58589116,0.00011,2]
[340196254,1728821438351,-663.2,0.00011,2]
[340196388,1728821439830,-1493.397668,0.00011,2]
[340196391,1728821439850,-2546.88,0.00011,2]
[340196406,1728821439984,-143138.70300391,0.00011,2]
[340196496,1728821440991,-628.21759,0.00011,2]
[340196507,1728821441096,-913.64986288,0.00011,2]
[340196694,1728821443082,-587.01054859,0.00010448,2]
[340196696,1728821443094,-589.97098,0.00010448,2]
[340196699,1728821443105,-1886.91574201,0.00010448,2]
[340196938,1728821445862,-37.42106148,0.00010448,2]
[340196968,1728821446864,-1199.51757824,0.00010448,2]
[340196969,1728821446873,-613.79352371,0.00010999,2]
[340196970,1728821446884,-61686.68889805,0.00011,2]
[340197139,1728821485516,500.0,9.071e-05,2]
[340197140,1728821493119,500.0,0.00010167,2]
[340197141,1728821514562,600.0,0.00010167,2]
[340197142,1728821568802,2608.23,0.00010162,2]
[340197143,1728821636331,2059.82,0.00010173,2]
[340197144,1728821682908,23890.0,0.00010173,2]
[340197145,1728821702803,261.3,8.278e-05,2]
[340197146,1728821784058,250.0,0.00010166,2]
[340197289,1728821829149,150.58,0.00010132,2]
[340197290,1728821841463,250.0,0.00010117,2]
[340197291,1728821850479,328.0,0.00010125,2]
[340197294,1728822169151,230.33,0.00010087,2]
[340197295,1728822190959,659.53,0.00010104,2]
[340197297,1728822294344,248.23,8.219e-05,2]
[340197298,1728822351586,250.0,0.00010082,2]
[340197299,1728822355833,207.89065054,6.94e-05,2]
[340197300,1728822379263,737.6,0.00010089,2]
[340197329,1728822631994,-170.51932731,0.00010357,2]
[340197330,1728822632004,-248.23,0.00010481,2]
[340197331,1728822632015,-178.99,0.00010559,2]
[340197332,1728822632024,-394.58660028,0.00010619,2]
[340197333,1728822632036,-405.41339972,0.00010619,2]
[340197334,1728822632046,-1313.71537881,0.0001088,2]
[340197335,1728822632058,-1106.02,0.0001088,2]
[340197336,1728822632080,-489.95582415,0.0001088,2]
[340197337,1728822632091,-439.35,0.0001088,2]
[340197338,1728822632251,-5644.64864698,0.0001088,2]
[340197339,1728822632262,-268.07010932,0.0001088,2]
[340197340,1728822632273,-1378.29577402,0.0001088,2]
[340197341,1728822632285,-427.51880542,0.0001088,2]
[340197342,1728822632308,-1382.78807392,0.0001088,2]
[340197343,1728822632319,-6184.95541676,0.0001088,2]
[340197344,1728822632332,-1584.40976051,0.0001088,2]
[340197345,1728822632347,-700.0,0.0001088,2]
[340197346,1728822632359,-622.0,0.0001088,2]
[340197347,1728822632370,-31533.80235796,0.0001088,2]
[340197348,1728822632379,-150.0,0.00010889,2]
[340197349,1728822632388,-20028.30075638,0.0001089,2]
[340197350,1728822632398,-1274.1515,0.000109,2]
[340197351,1728822632408,-1101.004,0.000109,2]
[340197353,1728822632418,-155.62278255,0.000109,2]
[340197355,1728822632427,-1165.19,0.000109,2]
[340197357,1728822632437,-3293.26,0.000109,2]
[340197359,1728822632446,-1511.03,0.000109,2]
[340197362,1728822632456,-2500.0,0.000109,2]
[340197364,1728822632466,-2500.0,0.000109,2]
[340197366,1728822632476,-691.1825091,0.000109,2]
[340197368,1728822632486,-2099.04,0.000109,2]
[340197370,1728822632495,-994.74322728,0.000109,2]
[340197372,1728822632505,-158.26,0.00010959,2]
[340197374,1728822632515,-499.99,0.00010959,2]
[340197376,1728822632524,-166.71,0.00010959,2]
[340197378,1728822632533,-270.55,0.00010959,2]
[340197380,1728822632542,-2000.0,0.00010959,2]
[340197382,1728822632551,-250.0,0.00010959,2]
[340197384,1728822632563,-154.39,0.00010959,2]
[340197386,1728822632572,-303.61,0.00010959,2]
[340197388,1728822632582,-168.782,0.00010973,2]
[340197391,1728822632591,-500.0,0.00010973,2]
[340197392,1728822632601,-177.66837526,0.0001099,2]
[340197394,1728822632610,-531.4654494,0.00010996,2]
[340197396,1728822632619,-171.0200145,0.00010996,2]
[340197398,1728822632628,-2708.1299673,0.00010996,2]
[340197400,1728822632639,-4817.11871027,0.00010996,2]
[340197402,1728822632651,-476.03849466,0.00010996,2]
[340197405,1728822632673,-1741.32673447,0.00010996,2]
[340197407,1728822632682,-200.02031107,0.00010997,2]
[340197409,1728822632692,-516.636,0.00010998,2]
[340197411,1728822632701,-554.0,0.00010998,2]
[340197412,1728822632710,-2846.30329932,0.00010998,2]
[340197415,1728822632721,-509.69670068,0.00010998,2]
[340197417,1728822632731,-198.44329932,0.00010998,2]
[340197419,1728822632742,-9.03770068,0.00010998,2]
[340197420,1728822632751,-613.79352371,0.00010999,2]
[340197421,1728822632759,-500.0,0.00010999,2]
[340197422,1728822632768,-500.0,0.00010999,2]
[340197423,1728822632777,-500.0,0.00010999,2]
[340197424,1728822632786,-500.0,0.00010999,2]
[340197425,1728822632796,-500.0,0.00010999,2]
[340197426,1728822632805,-500.0,0.00010999,2]
[340197427,1728822632814,-500.0,0.00010999,2]
[340197428,1728822632823,-500.0,0.00010999,2]
[340197429,1728822632832,-500.0,0.00010999,2]
[340197430,1728822632841,-174.8776612,0.00010999,2]
[340197431,1728822632851,-150.0,0.00010999,2]
[340197432,1728822632860,-176.51195507,0.00010999,2]
[340197433,1728822632869,-12456.41470257,0.00011,2]
[340197434,1728822632880,-1879.8522855,0.00011,2]
[340197435,1728822632891,-939.82724979,0.00011,2]
[340197436,1728822632902,-1075.9549519,0.00011,2]
[340197437,1728822632917,-3155.96712328,0.00011,2]
[340197438,1728822632928,-1602.76914189,0.00011,2]
[340197439,1728822638118,-150.0,0.00010998,2]
[340197440,1728822638127,-3350.0,0.00011,2]
[340197441,1728822638225,-580.70497735,0.00011,2]
[340197442,1728822638285,-297.97689013,0.00011,2]
[340197443,1728822638297,-4451.01784202,0.00011,2]
[340197444,1728822638310,-3479.93153971,0.00011,2]
[340197445,1728822638398,-6150.72760631,0.00011,2]
[340197446,1728822638410,-500.0,0.00011,2]
[340197447,1728822638508,-1056.81499998,0.00011,2]
[340197628,1728822640310,-306.89676186,0.00010999,2]
[340197630,1728822640319,-117.31585124,0.00011,2]
[340197633,1728822640330,-2560.22442328,0.00011,2]
[340197635,1728822640341,-370.51,0.00011,2]
[340197637,1728822640355,-756.99999998,0.00011,2]
[340198024,1728822646117,-598.1049,0.000109,2]
[340198025,1728822646126,-45104.5929079,0.00011,2]
[340198026,1728822646135,-17107.3021921,0.00011,2]
[340198027,1728822903156,502.0,0.00014,10]
[340198028,1728822917269,409.92,0.00010235,2]
[340198029,1728822972032,223.4,8.318e-05,2]
[340198030,1728823111467,160.286192,0.00014003,10]
[340198031,1728823415209,672.06,0.00010055,2]
[340198032,1728823441103,550.0,0.0001,2]
[340198034,1728823591069,212.23,8.219e-05,2]
[340198080,1728823832348,-212.23,0.00010481,2]
[340198081,1728823832358,-221.21212706,0.00010481,2]
[340198082,1728823832367,-150.0,0.00010899,2]
[340198083,1728823832377,-29.59141294,0.000109,2]
[340198084,1728823832388,-1323.38406831,0.000109,2]
[340198087,1728823838227,-1361.83791875,0.000109,2]
[340198088,1728823838237,-216.69138456,0.000109,2]
[340198089,1728823838247,-1573.35778643,0.000109,2]
[340198090,1728823838259,-1743.66113836,0.000109,2]
[340198091,1728823838281,-3822.79526417,0.000109,2]
[340198092,1728823838290,-1774.7276,0.000109,2]
[340198093,1728823838300,-2500.0,0.000109,2]
[340198094,1728823838309,-14448.31672437,0.000109,2]
[340198095,1728823838319,-222.72667162,0.000109,2]
[340198096,1728823838328,-1000.0,0.000109,2]
[340198097,1728823838338,-171.00963363,0.000109,2]
[340198098,1728823838347,-1795.74278229,0.000109,2]
[340198099,1728823838359,-1030.09974277,0.000109,2]
[340198100,1728823838368,-1382.3650182,0.000109,2]
[340198101,1728823838378,-2449.86240432,0.00010941,2]
[340198102,1728823838499,-260.92,0.00010941,2]
[340198103,1728823838555,-3089.21759568,0.00010941,2]
[340198104,1728823838564,-4368.49836481,0.00010949,2]
[340198105,1728823838576,-1431.50163519,0.00010949,2]
[340198106,1728823838586,-2581.59263481,0.00010958,2]
[340198107,1728823838611,-3218.40736519,0.00010958,2]
[340198108,1728823838621,-157.53,0.00010959,2]
[340198109,1728823838632,-276.23,0.00010959,2]
[340198110,1728823838644,-151.19,0.00010959,2]
[340198111,1728823838653,-5800.0,0.00010966,2]
[340198112,1728823838664,-500.0,0.00010973,2]
[340198114,1728823838674,-500.0,0.00010973,2]
[340198115,1728823838683,-5800.0,0.00010975,2]
[340198117,1728823838692,-5800.0,0.00010983,2]
[340198118,1728823838701,-232.01092315,0.0001099,2]
[340198119,1728823838710,-5800.0,0.00010992,2]
[340198120,1728823838719,-2008.5112361,0.00010996,2]
[340198121,1728823838729,-4922.3999106,0.00010996,2]
[340198122,1728823838738,-352.68295,0.00010996,2]
[340198123,1728823838746,-2031.29056224,0.00010997,2]
[340198124,1728823838756,-2199.223,0.00010998,2]
[340198125,1728823838765,-153.0,0.00010998,2]
[340198126,1728823838774,-150.0,0.00010998,2]
[340198128,1728823838783,-150.0,0.00010998,2]
[340198129,1728823838792,-153.44838093,0.00010999,2]
[340198130,1728823838800,-500.0,0.00010999,2]
[340198131,1728823838810,-436.84414409,0.00010999,2]
[340198132,1728823838819,-500.0,0.00010999,2]
[340198133,1728823838829,-500.0,0.00010999,2]
[340198134,1728823838838,-444.69186588,0.00010999,2]
[340198135,1728823838847,-29193.04126299,0.00011,2]
[340198136,1728823838858,-1121.2757229,0.00011,2]
[340198137,1728823838869,-7361.00831661,0.00011,2]
[340198141,1728823840223,-870.40032387,0.000109,2]
[340198142,1728823840233,-1012.17967613,0.000109,2]